bitfinex/quotes_ETHUSD_20250914
["timestamp","ask_amount","ask_price","bid_price","bid_amount"]
[1757884386049,1e-08,4611.3,4611.2,10.02903289]
[1757884387451,1e-08,4611.3,4611.2,9.62363289]
[1757884389073,0.4803,4612.2,4611.2,9.62363289]
[1757884389074,0.082,4612.8,4612.0,2.96025672]
[1757884389256,0.082,4612.8,4612.7,2.16792767]
[1757884389975,0.082,4612.8,4612.7,2.18960694]
[1757884390675,0.082,4612.8,4612.7,9.64160694]
[1757884390868,0.082,4612.8,4612.7,9.61992767]
[1757884395294,1.2814,4612.8,4612.7,9.61992767]
[1757884395496,1.2814,4612.8,4612.7,10.28560039]
[1757884395692,1.2814,4612.8,4612.7,10.39360039]
[1757884396056,0.082,4612.8,4612.7,10.39360039]
[1757884396556,0.5155,4612.8,4612.7,10.39360039]
[1757884397958,0.082,4612.8,4612.7,10.39360039]
[1757884398159,1e-08,4612.8,4612.7,10.39360039]
[1757884399657,1e-08,4612.8,4612.7,6.73360039]
[1757884399860,0.71910001,4612.8,4612.7,10.39160039]
[1757884400167,1.19940001,4612.8,4612.7,10.39160039]
[1757884400590,1.19940001,4612.8,4612.7,6.73360039]
[1757884400767,1.19940001,4612.8,4612.7,10.39160039]
[1757884401165,1.19940001,4612.8,4612.7,8.93392767]
[1757884402255,1e-08,4612.8,4612.7,5.27592767]
[1757884402691,0.43350001,4612.8,4612.7,5.27592767]
[1757884402861,0.71910001,4612.8,4612.7,5.27592767]
[1757884404373,0.72110001,4612.8,4612.7,5.27592767]
[1757884404570,0.00200001,4612.8,4612.7,7.17812033]
[1757884407506,0.72110001,4612.8,4612.7,7.17812033]
[1757884409785,0.00200001,4612.8,4612.7,10.84412033]
[1757884413191,0.43490001,4612.8,4612.7,10.84412033]
[1757884413597,1.20410001,4612.8,4612.7,10.84412033]
[1757884415118,0.74400001,4612.8,4612.7,10.84412033]
[1757884415515,0.43490001,4612.8,4612.7,10.84412033]
[1757884416106,0.00200001,4612.8,4612.7,10.84412033]
[1757884418823,1e-08,4612.9,4612.8,5.95988067]
[1757884419122,1e-08,4612.9,4612.8,6.95853963]
[1757884421014,1e-08,4612.9,4612.8,8.51324898]
[1757884421403,1e-08,4612.9,4612.8,6.95853963]
[1757884421928,0.30910001,4612.9,4612.8,6.95853963]
[1757884422110,0.002,4613.3,4613.2,2.9596927]
[1757884422309,0.002,4613.3,4613.2,6.0676927]
[1757884422509,0.3111,4613.3,4613.2,6.0676927]
[1757884422723,0.744,4613.3,4613.2,6.0676927]
[1757884424115,1.2041,4613.3,4613.2,6.0676927]
[1757884424937,1.2041,4613.3,4613.2,9.7256927]
[1757884425237,1.2041,4613.3,4613.2,8.9336927]
[1757884425804,0.744,4613.3,4613.2,8.9336927]
[1757884427217,0.744,4613.3,4613.2,5.2756927]
[1757884427626,0.002,4613.3,4613.2,6.0676927]
[1757884427828,0.002,4613.3,4613.2,6.93755791]
[1757884428134,0.002,4613.3,4613.2,6.62535791]
[1757884429408,0.002,4613.8,4613.6,0.792]
[1757884429609,0.002,4613.8,4613.7,5.18913235]
[1757884429908,0.002,4613.8,4613.7,5.46348345]
[1757884432640,0.002,4613.8,4613.7,6.6759437]
[1757884433946,0.002,4613.8,4613.7,7.1496437]
[1757884434345,0.5553,4614.8,4614.5,2.16705789]
[1757884434643,0.08,4614.8,4614.7,2.1669881]
[1757884434821,0.8262,4614.8,4614.7,2.1669881]
[1757884435623,0.4753,4615.2,4615.1,2.16680028]
[1757884435823,0.4753,4615.2,4615.1,2.18846828]
[1757884435824,0.7861,4615.2,4615.1,2.18846828]
[1757884437030,0.3108,4615.2,4615.1,2.18846828]
[1757884437228,0.3108,4615.2,4615.1,2.16680028]
[1757884437748,0.7861,4615.2,4615.1,2.16680028]
[1757884438646,1.2215,4615.2,4615.1,2.16680028]
[1757884439439,1.2215,4615.2,4615.1,2.27480028]
[1757884440823,1.2235,4615.2,4615.1,2.27480028]
[1757884441743,0.002,4615.2,4615.1,2.27480028]
[1757884441932,0.7447,4615.2,4615.1,2.27480028]
[1757884442536,0.2936,4615.2,4615.1,2.27480028]
[1757884445218,0.002,4615.2,4615.1,6.31776744]
[1757884453568,0.002,4615.2,4615.1,6.47990232]
[1757884455594,0.2936,4615.2,4615.1,6.18110232]
[1757884456354,1.181,4615.2,4615.1,6.18110232]
[1757884458401,1.181,4615.2,4615.1,5.43693516]
[1757884459696,0.7447,4615.2,4615.1,5.43693516]
[1757884459880,1.181,4615.2,4615.1,5.43693516]
[1757884462299,4.821,4615.2,4615.1,5.43693516]
[1757884463330,4.821,4615.2,4615.1,6.60163487]
[1757884463885,3.9316,4615.2,4615.1,6.60163487]
[1757884464233,3.64,4615.2,4615.1,6.60163487]
[1757884464438,3.641,4615.2,4615.1,5.73573516]
[1757884464776,3.641,4615.2,4615.1,5.43693516]
[1757884465524,3.9326,4615.2,4615.1,5.43693516]
[1757884465728,3.641,4615.2,4615.1,5.43693516]
[1757884467718,3.641,4615.2,4615.1,5.73573516]
[1757884469527,3.641,4615.2,4615.1,5.43693516]
[1757884472327,3.638,4615.2,4615.1,5.43693516]
[1757884472691,3.9494,4615.2,4615.1,5.43693516]
[1757884472913,3.9484,4615.2,4615.1,5.43693516]
[1757884473799,1e-08,4615.7,4615.2,5.95875333]
[1757884474041,1e-08,4615.7,4615.6,6.26606556]
[1757884474246,1e-08,4615.7,4615.6,6.42820044]
[1757884474447,1e-08,4615.7,4615.6,6.87930044]
[1757884474600,0.08,4616.8,4616.0,3.792]
[1757884474798,2.008,4617.3,4617.2,2.16581477]
[1757884475043,2.3194,4617.3,4617.2,2.32794965]
[1757884475538,1.664,4617.9,4617.3,5.16576787]
[1757884475742,1.561,4617.5,4617.3,5.32790275]
[1757884477148,0.4586,4617.8,4617.3,5.32790275]
[1757884477149,3.64,4617.4,4617.3,5.32790275]
[1757884477643,0.002,4617.4,4617.3,5.63540275]
[1757884478746,1.2488,4617.4,4617.3,2.32790275]
[1757884479247,0.7902,4617.4,4617.3,2.32790275]
[1757884479652,0.002,4617.4,4617.3,2.34956042]
[1757884479958,0.08,4618.8,4618.4,2.16523206]
[1757884479959,0.4768,4618.7,4618.4,2.16523206]
[1757884480247,0.4768,4618.7,4618.1,2.16536655]
[1757884480248,2.506,4618.8,4618.6,2.16515827]
[1757884480406,1.2468,4618.7,4618.6,2.16515827]
[1757884481453,0.7882,4618.7,4618.6,2.16515827]
[1757884481609,0.3114,4618.7,4618.6,2.16515827]
[1757884482019,0.08,4618.8,4618.7,2.16511139]
[1757884482219,3.6074,4618.8,4618.7,2.16511139]
[1757884483867,3.296,4618.8,4618.7,2.16511139]
[1757884484866,3.296,4618.8,4618.7,5.47261139]
[1757884484867,3.719,4618.8,4618.7,5.47261139]
[1757884485067,0.08,4618.8,4618.7,5.47261139]
[1757884485367,3.718,4618.8,4618.7,5.47261139]
[1757884485680,0.08,4618.8,4618.7,5.47261139]
[1757884485881,3.718,4618.8,4618.7,5.47261139]
[1757884486474,3.718,4618.8,4618.7,5.16511139]
[1757884486849,4.0294,4618.8,4618.7,5.16511139]
[1757884487274,0.3914,4618.8,4618.7,5.16511139]
[1757884487483,4.0284,4618.8,4618.7,5.16511139]
[1757884487779,4.0284,4618.8,4618.7,2.16511139]
[1757884487969,4.9638,4618.8,4618.7,2.16511139]
[1757884490076,0.8682,4618.8,4618.7,2.16511139]
[1757884490250,4.5032,4618.8,4618.7,2.16511139]
[1757884490447,1e-08,4618.9,4618.8,5.95706451]
[1757884490768,1e-08,4618.9,4618.8,5.16506451]
[1757884491077,1e-08,4618.9,4618.8,6.1224856]
[1757884494855,0.00200001,4618.9,4618.8,6.1224856]
[1757884495057,0.00200001,4618.9,4618.8,6.88296625]
[1757884496392,0.31290001,4618.9,4618.8,5.92554516]
[1757884496759,0.31290001,4618.9,4618.8,6.40234516]
[1757884497691,0.00200001,4618.9,4618.8,6.40234516]
[1757884498165,0.31290001,4618.9,4618.8,6.40234516]
[1757884500178,0.00200001,4618.9,4618.8,6.71204516]
[1757884500497,0.00200001,4618.9,4618.8,6.82004516]
[1757884500724,0.30910001,4618.9,4618.8,6.51034516]
[1757884501415,0.00200001,4618.9,4618.8,6.51034516]
[1757884501916,0.00200001,4618.9,4618.8,6.82004516]
[1757884503490,0.00200001,4618.9,4618.8,6.93016585]
[1757884503693,0.00200001,4618.9,4618.8,6.82004516]
[1757884505979,0.00200001,4618.9,4618.8,7.31704516]
[1757884506179,0.00200001,4618.9,4618.8,7.28744516]
[1757884506400,0.00200001,4618.9,4618.8,6.82004516]
[1757884507695,0.30910001,4618.9,4618.8,6.51034516]
[1757884508111,0.30910001,4618.9,4618.8,5.74986451]
[1757884511204,0.00200001,4618.9,4618.8,5.74986451]
[1757884511607,0.30910001,4618.9,4618.8,5.74986451]
[1757884512331,0.80680001,4618.9,4618.8,5.74986451]
[1757884512531,0.80680001,4618.9,4618.8,5.16506451]
[1757884513713,0.00200001,4618.9,4618.8,5.47476451]
[1757884513920,0.00200001,4618.9,4618.8,6.51684177]
[1757884514119,0.00200001,4618.9,4618.8,6.98424177]
[1757884514717,0.00200001,4618.9,4618.8,5.94316451]
[1757884515728,0.00200001,4618.9,4618.8,6.05116451]
[1757884515930,0.00200001,4618.9,4618.8,6.54816451]
[1757884516131,0.00200001,4618.9,4618.8,7.1980856]
[1757884517728,0.00200001,4618.9,4618.8,7.9900856]
[1757884518039,0.00200001,4618.9,4618.8,9.58502497]
[1757884521346,0.4977,4620.4,4619.3,3.792]
[1757884521507,2.8224,4620.6,4620.3,2.16436162]
[1757884521837,0.3071,4620.4,4620.3,2.16436162]
[1757884523040,0.3071,4620.4,4620.3,2.18600523]
[1757884524948,5.29,4620.6,4620.5,2.16426793]
[1757884525126,5.5971,4620.6,4620.5,2.16426793]
[1757884526143,1.9691,4620.6,4620.5,5.16426793]
[1757884526454,1.662,4620.6,4620.5,5.16426793]
[1757884526620,1.662,4620.6,4620.5,5.47396793]
[1757884526823,1.662,4620.6,4620.5,6.09003039]
[1757884527552,1.662,4620.6,4620.5,6.66543039]
[1757884527752,0.08,4620.8,4620.7,2.16417425]
[1757884527916,0.08,4620.8,4620.7,2.18581599]
[1757884528117,0.08,4620.8,4620.7,2.49551599]
[1757884528543,0.08,4620.8,4620.7,5.96291599]
[1757884528737,0.08,4620.8,4620.7,6.69281492]
[1757884531018,0.08,4620.8,4620.7,7.18201492]
[1757884531323,0.08,4620.8,4620.7,6.69281492]
[1757884532152,0.082,4620.8,4620.7,6.69281492]
[1757884532760,0.082,4620.8,4620.7,6.22541492]
[1757884533255,1.2887,4620.8,4620.7,5.16417425]
[1757884538653,0.3879,4620.8,4620.7,5.16417425]
[1757884538870,0.8484,4620.8,4620.7,5.16417425]
[1757884539267,0.3879,4620.8,4620.7,5.16417425]
[1757884539458,0.082,4620.8,4620.7,5.16417425]
[1757884540069,0.3879,4620.8,4620.7,5.16417425]
[1757884540272,0.082,4620.8,4620.7,5.91087425]
[1757884540472,0.082,4620.8,4620.7,6.83718847]
[1757884541505,1e-08,4620.8,4620.7,11.63738847]
[1757884543324,1e-08,4620.8,4620.7,12.09788847]
[1757884543930,1e-08,4620.8,4620.7,11.16328847]
[1757884544291,1e-08,4620.8,4620.7,11.60868847]
[1757884544629,1e-08,4620.8,4620.7,12.09788847]
[1757884545129,1e-08,4620.8,4620.7,11.16328847]
[1757884545319,1e-08,4620.8,4620.7,11.60868847]
[1757884546388,1e-08,4620.8,4620.7,12.09788847]
[1757884548233,1e-08,4620.8,4620.7,12.77649903]
[1757884550142,1e-08,4620.8,4620.7,11.60868847]
[1757884551450,1e-08,4620.8,4620.7,11.71668847]
[1757884553055,1e-08,4620.8,4620.7,12.09788847]
[1757884557542,1e-08,4620.8,4620.7,11.16228847]
[1757884558603,1e-08,4620.8,4620.7,11.60998847]
[1757884558889,1e-08,4620.8,4620.7,12.06538847]
[1757884560977,1e-08,4620.8,4620.7,16.26538847]
[1757884563051,1e-08,4620.8,4620.7,16.37338847]
[1757884563993,1e-08,4620.8,4620.7,11.84428847]
[1757884564151,1e-08,4620.8,4620.7,15.47028847]
[1757884565583,1e-08,4620.8,4620.7,15.16898847]
[1757884565781,0.29860001,4620.8,4620.7,16.72233688]
[1757884565996,0.29860001,4620.8,4620.7,13.09641429]
[1757884566202,0.75120001,4620.8,4620.7,15.16898847]
[1757884566372,1.21040001,4620.8,4620.7,15.16898847]
[1757884566703,1.21040001,4620.8,4620.7,3.55098847]
[1757884567303,1.21040001,4620.8,4620.7,6.55098847]
[1757884569083,1.21040001,4620.8,4620.7,3.32987937]
[1757884569290,1.21040001,4620.8,4620.7,2.16417425]
[1757884578909,1e-08,4620.8,4620.7,2.48171599]
[1757884579217,1e-08,4620.8,4620.7,2.99717425]
[1757884579421,1e-08,4620.8,4620.7,3.87838834]
[1757884580128,1e-08,4620.8,4620.7,3.90003008]
[1757884580438,1e-08,4620.8,4620.7,4.37893008]
[1757884580751,1e-08,4620.8,4620.7,4.35728834]
[1757884581625,0.4526,4621.5,4620.7,7.37893008]
[1757884581824,3.626,4621.4,4621.1,2.16396311]
[1757884582126,3.626,4621.4,4621.3,2.16389327]
[1757884582325,1.662,4621.7,4621.6,2.16375281]
[1757884582507,5.5866,4621.7,4621.6,2.16375281]
[1757884582708,5.288,4621.7,4621.6,2.16375281]
[1757884583433,5.288,4621.7,4621.6,2.48129033]
[1757884584117,1.662,4621.7,4621.6,2.48129033]
[1757884584806,1.662,4621.7,4621.6,5.91039033]
[1757884585007,1.662,4621.7,4621.6,5.88875281]
[1757884586127,0.4526,4622.3,4622.2,5.16347193]
[1757884586335,3.626,4622.3,4622.2,5.16347193]
[1757884586514,3.9246,4622.3,4622.2,5.16347193]
[1757884586704,4.8364,4622.3,4622.2,5.16347193]
[1757884586905,4.8364,4622.3,4622.2,2.16347193]
[1757884587647,1.2104,4622.3,4622.2,2.16347193]
[1757884587848,4.8354,4622.3,4622.2,2.16347193]
[1757884588053,3.625,4622.3,4622.2,2.16347193]
[1757884588438,3.9236,4622.3,4622.2,2.16347193]
[1757884588944,3.9256,4622.3,4622.2,2.16347193]
[1757884589532,4.8373,4622.3,4622.2,2.16347193]
[1757884589753,1.2123,4622.3,4622.2,2.16347193]
[1757884589949,4.8373,4622.3,4622.2,2.16347193]
[1757884590647,4.8373,4622.3,4622.1,3.0]
[1757884590648,4.8373,4622.3,4621.9,2.16360842]
[1757884590848,3.9256,4622.3,4621.7,0.64956365]
[1757884591039,0.9117,4622.2,4621.7,0.64956365]
[1757884591346,0.2877,4621.8,4621.7,2.81325918]
[1757884591510,3.9127,4621.8,4621.7,2.81325918]
[1757884591912,4.386,4621.8,4621.7,2.81325918]
[1757884592140,4.8244,4621.8,4621.7,2.81325918]
[1757884592546,4.8244,4621.8,4621.7,2.16369553]
[1757884594450,4.386,4621.8,4621.7,2.16369553]
[1757884595852,4.8475,4621.8,4621.7,2.16369553]
[1757884597074,4.8475,4621.8,4621.4,0.64960023]
[1757884597249,1.41685,4621.7,4621.5,2.16376375]
[1757884597447,0.9321,4621.7,4621.5,2.16376375]
[1757884597754,1.2339,4621.6,4621.5,2.16376375]
[1757884599332,0.7724,4621.6,4621.5,2.16376375]
[1757884599535,0.3018,4621.6,4621.5,2.16376375]
[1757884599773,3.733,4621.8,4621.7,2.16370599]
[1757884599973,4.0348,4621.8,4621.7,2.16370599]
[1757884600184,0.108,4621.8,4621.7,2.16370599]
[1757884600381,0.002,4622.3,4622.2,2.16347193]
[1757884600682,0.002,4622.3,4621.9,2.16360954]
[1757884600683,3.161,4622.3,4622.1,2.1635148]
[1757884600841,3.161,4622.3,4622.2,2.16347193]
[1757884601040,4.3949,4622.3,4622.2,2.16347193]
[1757884601579,3.9288,4622.3,4622.2,2.16347193]
[1757884602994,4.8609,4622.3,4622.2,2.16347193]
[1757884603592,0.108,4622.2,4621.5,0.9168]
[1757884603796,0.108,4622.2,4622.1,2.16351874]
[1757884604095,0.8804,4622.2,4622.1,2.16351874]
[1757884605114,0.8804,4622.2,4621.9,2.16356602]
[1757884605393,0.4706,4622.1,4621.9,2.16356602]
[1757884605590,3.9258,4622.0,4621.9,2.16356602]
[1757884609905,3.624,4622.0,4621.9,2.16356602]
[1757884610104,0.108,4622.2,4621.9,2.47706602]
[1757884610302,3.624,4622.0,4621.9,2.47706602]
[1757884610788,0.108,4622.2,4621.9,0.3135]
[1757884610988,0.002,4622.3,4622.2,2.16347193]
[1757884611192,3.408,4622.3,4622.2,2.47697193]
[1757884614801,4.1951,4622.3,4622.2,2.16347193]
[1757884615197,4.6458,4622.3,4622.2,2.16347193]
[1757884616878,4.6458,4622.3,4621.7,0.64957069]
[1757884617098,4.6458,4622.3,4621.6,1.27370512]
[1757884617099,5.0267713,4622.3,4622.2,2.16347193]
[1757884617312,4.6458,4622.3,4622.2,2.16347193]
[1757884618107,4.6458,4622.3,4622.0,2.16353936]
[1757884618418,1.044,4622.2,4622.1,2.16351874]
[1757884618824,1.3291,4622.2,4622.1,2.16351874]
[1757884620697,0.3931,4622.2,4622.1,2.16351874]
[1757884621026,0.3931,4622.2,4622.1,6.36161874]
[1757884621027,3.732,4622.2,4622.1,6.36161874]
[1757884621520,0.108,4622.2,4622.1,6.36161874]
[1757884621726,3.732,4622.2,4622.1,6.36161874]
[1757884622127,3.732,4622.2,4622.1,5.90091874]
[1757884622791,0.108,4622.2,4622.1,5.90091874]
[1757884622997,3.731,4622.2,4622.1,6.36161874]
[1757884623917,0.002,4622.3,4622.2,5.16347193]
[1757884624139,3.625,4622.3,4622.2,3.06657193]
[1757884624298,3.625,4622.3,4622.2,6.36157193]
[1757884625447,0.002,4622.3,4622.2,6.36157193]
[1757884625621,3.625,4622.3,4622.2,6.36157193]
[1757884626254,0.002,4622.3,4622.2,7.50619372]
[1757884626422,3.625,4622.3,4622.2,7.50619372]
[1757884630250,3.625,4622.3,4622.2,8.15568565]
[1757884632365,3.625,4622.3,4622.2,8.26619681]
[1757884632664,3.625,4622.3,4622.2,8.15568565]
[1757884633974,0.002,4622.3,4622.2,8.15568565]
[1757884634175,0.002,4622.3,4622.2,7.69498565]
[1757884634473,0.298,4622.3,4622.2,5.81296386]
[1757884634636,0.298,4622.3,4622.2,5.16347193]
[1757884634637,1.2563,4622.3,4622.2,5.16347193]
[1757884635746,1.2563,4622.3,4622.2,3.0]
[1757884638377,1.2563,4622.3,4621.5,1.16570512]
[1757884638550,1.2563,4622.3,4621.8,2.16365493]
[1757884638551,0.108,4622.1,4621.8,2.16365493]
[1757884638876,0.108,4621.7,4621.6,2.16375281]
[1757884639052,4.026,4621.7,4621.6,2.16375281]
[1757884639650,4.9843,4621.7,4621.2,3.0]
[1757884639860,0.108,4621.5,4621.2,5.16393656]
[1757884640171,3.622,4621.4,4621.3,2.16389327]
[1757884641259,3.918,4621.4,4621.3,5.16389327]
[1757884641468,0.108,4621.5,4621.3,0.295]
[1757884641672,0.002,4622.3,4622.2,2.16347193]
[1757884641982,3.624,4622.3,4622.2,2.16347193]
[1757884642181,0.5005001,4622.3,4622.2,2.16347193]
[1757884642344,3.624,4622.3,4622.2,2.16347193]
[1757884642681,3.8265001,4622.3,4622.2,2.16347193]
[1757884646462,0.2045001,4622.3,4622.2,2.16347193]
[1757884646664,3.624,4622.3,4622.2,2.16347193]
[1757884646981,3.8265001,4622.3,4622.2,2.16347193]
[1757884647384,3.624,4622.3,4622.2,2.16347193]
[1757884648183,3.732,4622.3,4622.2,2.16347193]
[1757884649579,3.732,4622.3,4622.2,2.46257193]
[1757884650681,3.624,4622.3,4622.2,6.9097454]
[1757884651264,3.624,4622.3,4622.2,7.07203387]
[1757884651876,3.624,4622.3,4622.2,7.07203356]
[1757884652397,3.624,4622.3,4622.2,6.13313356]
[1757884652554,3.624,4622.3,4622.2,5.83403356]
[1757884653489,3.624,4622.3,4622.2,5.32576009]
[1757884656102,4.8365,4622.3,4622.2,5.32576009]
[1757884656274,4.9445,4622.3,4622.2,5.32576009]
[1757884657775,4.9445,4622.3,4622.2,3.16228816]
[1757884657971,4.9445,4622.3,4622.2,2.32576009]
[1757884659606,4.9445,4622.3,4622.2,0.16228816]
[1757884660292,4.9445,4622.3,4622.2,2.32576009]
[1757884661375,4.9445,4622.3,4622.2,0.16228816]
[1757884661583,4.9445,4622.3,4622.2,2.32576009]
[1757884662105,4.5001,4622.3,4622.2,2.32576009]
[1757884662319,4.0324,4622.3,4622.2,2.32576009]
[1757884662692,4.5001,4622.3,4622.2,2.32576009]
[1757884664419,5.14700655,4622.3,4622.2,2.32576009]
[1757884665427,4.23490655,4622.3,4622.2,2.32576009]
[1757884666429,4.23490655,4622.3,4622.2,2.32604982]
[1757884670962,4.70260655,4622.3,4622.2,2.32604982]
[1757884671857,3.93450655,4622.3,4622.2,2.62514982]
[1757884672048,3.93450655,4622.3,4622.2,3.56404982]
[1757884672728,3.93450655,4622.3,4622.2,3.08174982]
[1757884675474,3.623,4622.3,4622.2,7.33278134]
[1757884676843,0.002,4622.3,4622.2,7.33278134]
[1757884677044,3.079,4622.3,4622.2,7.33278134]
[1757884679239,0.002,4622.3,4622.2,7.33278134]
[1757884679440,3.201,4622.3,4622.2,7.33278134]
[1757884681061,3.201,4622.3,4622.2,7.33284033]
[1757884681573,0.002,4622.3,4622.2,7.33284033]
[1757884681775,3.622,4622.3,4622.2,7.33284033]
[1757884683468,0.002,4622.3,4622.2,8.12484033]
[1757884683673,3.622,4622.3,4622.2,8.12484033]
[1757884687586,0.002,4622.3,4622.2,8.12484033]
[1757884688084,0.002,4622.3,4622.2,8.77429149]
[1757884690292,0.002,4622.3,4622.2,9.94022264]
[1757884692068,0.002,4622.3,4622.2,9.48472264]
[1757884692250,0.002,4622.3,4622.2,9.05712264]
[1757884694061,0.2958,4622.3,4622.2,8.75802264]
[1757884694792,0.002,4622.3,4622.2,8.75802264]
[1757884695295,0.002,4622.3,4622.2,9.07332264]
[1757884695505,0.7758,4622.3,4622.2,1.97801919]
[1757884695660,0.7758,4622.3,4622.2,0.16263688]
[1757884695661,4.8333,4622.3,4622.2,0.16263688]
[1757884696097,4.8333,4622.3,4622.2,0.16239689]
[1757884697994,4.8333,4622.3,4622.2,2.32586882]
[1757884699367,4.8333,4622.3,4622.2,0.16239689]
[1757884699894,5.51879329,4622.3,4621.3,1.16593115]
[1757884700199,5.51879329,4622.3,4620.9,0.11288996]
[1757884700200,2.78166329,4622.2,4621.5,2.16377951]
[1757884700365,0.9185,4622.1,4621.6,2.32617515]
[1757884700562,0.9185,4622.0,4621.7,2.32612493]
[1757884700791,4.5375,4621.9,4621.8,0.16243295]
[1757884700962,4.8313,4621.9,4621.8,0.16243295]
[1757884703806,4.8313,4621.9,4621.8,0.16233252]
[1757884704692,4.8313,4621.9,4621.8,2.3259917]
[1757884705503,4.8313,4621.9,4621.8,0.16233252]
[1757884705504,5.48053,4621.9,4621.8,0.16233252]
[1757884706312,5.48053,4621.9,4621.8,2.3259917]
[1757884706809,5.48053,4621.9,4621.8,0.16233252]
[1757884706977,5.48053,4621.9,4621.8,2.3259917]
[1757884707417,5.48053,4621.9,4621.8,0.16233252]
[1757884708042,1.661,4622.2,4621.8,0.47763252]
[1757884708228,3.618,4622.1,4622.0,2.16356555]
[1757884708839,3.618,4622.1,4622.0,2.32579093]
[1757884709442,3.618,4622.1,4622.0,2.47306555]
[1757884709640,1.769,4622.2,4622.1,2.16351874]
[1757884709843,5.387,4622.2,4622.1,2.16351874]
[1757884710043,5.387,4622.2,4622.1,2.47301874]
[1757884710628,5.387,4622.2,4622.1,2.92061874]
[1757884711228,5.387,4622.2,4622.1,2.47301874]
[1757884713467,5.279,4622.2,4622.1,5.92061874]
[1757884713667,5.279,4622.2,4622.1,6.54671366]
[1757884714167,5.279,4622.2,4622.1,6.08281366]
[1757884715770,5.279,4622.2,4622.1,6.08281388]
[1757884719375,5.279,4622.2,4622.1,5.63521388]
[1757884720060,5.279,4622.2,4622.1,5.32571388]
[1757884720760,6.5083,4622.2,4622.1,3.16219514]
[1757884720940,7.17013,4622.2,4622.1,3.16219514]
[1757884721141,6.70733,4622.2,4622.1,5.32571388]
[1757884721464,6.0455,4622.2,4622.1,5.32571388]
[1757884721863,5.5724,4622.2,4622.1,5.32571388]
[1757884723543,6.5083,4622.2,4622.1,5.32571388]
[1757884724787,6.0455,4622.2,4622.1,5.32571388]
[1757884725347,6.24798723,4622.2,4622.1,5.32571388]
[1757884728212,1.661,4622.2,4622.1,7.33871388]
[1757884728379,5.278,4622.2,4622.1,8.19564646]
[1757884728897,3.617,4622.2,4622.1,8.19564646]
[1757884729691,3.619,4622.2,4622.1,8.19564646]
[1757884736475,4.8508,4622.2,4622.1,0.16219514]
[1757884736796,5.17466328,4622.2,4621.4,2.16384644]
[1757884737002,1.26416328,4622.1,4621.5,2.32749756]
[1757884737194,1.661,4622.0,4621.6,0.16370428]
[1757884737382,0.2915,4621.7,4621.5,2.16379328]
[1757884737592,4.5563,4621.6,4621.5,2.16379328]
[1757884737763,4.8478,4621.6,4621.5,2.32746493]
[1757884739299,4.8478,4621.6,4621.5,0.16367165]
[1757884740198,3.9075,4621.6,4621.5,2.32747128]
[1757884741413,3.616,4621.6,4621.5,2.32738347]
[1757884741713,2.1331,4622.0,4621.7,2.16370599]
[1757884741876,3.616,4621.9,4621.8,2.16365918]
[1757884742275,3.916,4621.9,4621.8,2.16365918]
[1757884742605,3.616,4621.9,4621.8,2.16365918]
[1757884743101,1.661,4622.0,4621.9,2.16361236]
[1757884743301,5.577,4622.0,4621.9,2.16361236]
[1757884743505,5.77923401,4622.0,4621.9,2.16361236]
[1757884743924,6.69443401,4622.0,4621.9,2.16361236]
[1757884744215,5.77923401,4622.0,4621.9,2.16361236]
[1757884744940,5.577,4622.0,4621.9,2.16361236]
[1757884748213,1.961,4622.0,4621.9,2.16361236]
[1757884748417,5.577,4622.0,4621.9,2.16361236]
[1757884751636,1.661,4622.0,4621.9,3.40311236]
[1757884751792,0.002,4622.2,4622.1,5.95551874]
[1757884752001,2.255,4622.2,4622.1,6.11900503]
[1757884752322,2.255,4622.2,4622.1,7.35850503]
[1757884755496,0.002,4622.2,4622.1,7.35850503]
[1757884755690,3.618,4622.2,4622.1,8.37718495]
[1757884756116,0.002,4622.2,4622.1,8.37718495]
[1757884756332,3.618,4622.2,4622.1,8.37718495]
[1757884757240,0.002,4622.2,4622.1,8.37718495]
[1757884757539,0.002,4622.2,4622.1,8.48518495]
[1757884760730,0.002,4622.2,4622.1,8.48606062]
[1757884764169,0.002,4622.2,4622.1,8.02426062]
[1757884764576,0.002,4622.2,4622.1,8.02419741]
[1757884765677,0.002,4622.2,4622.1,8.67362607]
[1757884766563,0.002,4622.2,4622.1,9.13542607]
[1757884766871,0.002,4622.2,4622.1,9.13539901]
[1757884767073,0.002,4622.2,4622.1,8.67359901]
[1757884773980,0.002,4622.2,4622.1,8.19939901]
[1757884776083,0.3008,4622.2,4622.1,6.22779043]
[1757884776267,0.7509,4622.2,4622.1,6.22779043]
[1757884776469,0.3008,4622.2,4622.1,6.22779043]
[1757884776676,3.9148,4622.2,4622.1,6.22779043]
[1757884780109,4.8056,4622.2,4622.1,6.22779043]
[1757884780264,3.9148,4622.2,4622.1,6.22779043]
[1757884781300,0.3008,4622.2,4622.1,6.22779043]
[1757884781478,3.616,4622.2,4622.1,6.22779043]
[1757884784798,3.616,4622.2,4622.1,6.53279043]
[1757884785105,3.616,4622.2,4622.1,6.22779043]
[1757884785267,3.616,4622.2,4622.1,6.53279043]
[1757884785465,3.615,4622.2,4622.1,6.53279043]
[1757884788204,3.615,4622.2,4622.1,6.22779043]
[1757884790100,3.615,4622.2,4622.1,6.53279043]
[1757884790713,3.615,4622.2,4622.1,6.22779043]
[1757884796732,0.002,4622.2,4622.1,6.53319043]
[1757884798737,0.002,4622.2,4622.1,6.22779043]
[1757884799302,0.002,4622.2,4622.1,8.3461799]
[1757884800313,0.002,4622.7,4622.6,5.95528473]
[1757884800495,0.002,4622.7,4622.6,6.11955642]
[1757884800829,0.002,4622.7,4622.6,6.22755642]
[1757884801127,0.002,4622.7,4622.6,6.53585642]
[1757884806328,0.002,4622.7,4622.6,7.45257746]
[1757884806636,0.002,4622.7,4622.6,7.90027746]
[1757884808143,0.002,4622.7,4622.6,7.45257746]
[1757884811649,0.002,4622.7,4622.6,7.90027746]
[1757884811820,0.002,4622.7,4622.6,8.36857746]
[1757884812142,0.002,4622.7,4622.6,9.01793021]
[1757884813742,1e-08,4622.8,4622.7,5.95523793]